[Event "Titled Tuesday Blitz August 22 Late 2023"]
[White "Troff, Kayden"]
[Black "Tologon tegin, Semetei"]
[WhiteFideId "2047896"]
[BlackFideId "13800574"]
[WhiteElo "2753"]
[BlackElo "2591"]
[Result "0-1"]
[Round "5"]
[TimeControl "180+1"]
[Date "2023.08.22"]
[WhiteClock "0:00:07"]
[BlackClock "0:00:07"]
[Board "61"]

1. d4 {[%clk 0:03:00]}  d5 {[%clk 0:02:55]} 2. Nf3 {[%clk 0:03:00]}  Nf6 {[%clk 0:02:55]} 3. Bf4 {[%clk 0:02:58]}  c5 {[%clk 0:02:54]} 4. e3 {[%clk 0:02:58]}  Nc6 {[%clk 0:02:54]} 5. Nc3 {[%clk 0:02:57]}  a6 {[%clk 0:02:53]} 6. dxc5 {[%clk 0:02:56]}  e6 {[%clk 0:02:48]} 7. Na4 {[%clk 0:02:56]}  Ne4 {[%clk 0:02:28]} 8. c3 {[%clk 0:02:30]}  Nxc5 {[%clk 0:02:24]} 9. Nxc5 {[%clk 0:02:29]}  Bxc5 {[%clk 0:02:24]} 10. Bd3 {[%clk 0:02:30]}  h6 {[%clk 0:02:16]} 11. O-O {[%clk 0:02:26]}  O-O {[%clk 0:02:15]} 12. e4 {[%clk 0:02:11]}  d4 {[%clk 0:01:48]} 13. cxd4 {[%clk 0:01:51]}  Nxd4 {[%clk 0:01:49]} 14. e5 {[%clk 0:01:47]}  b5 {[%clk 0:01:42]} 15. Be4 {[%clk 0:01:40]}  Ra7 {[%clk 0:01:40]} 16. Rc1 {[%clk 0:01:37]}  Bb6 {[%clk 0:01:38]} 17. Nxd4 {[%clk 0:01:36]}  Qxd4 {[%clk 0:01:35]} 18. Qc2 {[%clk 0:01:15]}  Bb7 {[%clk 0:01:30]} 19. Be3 {[%clk 0:00:24]}  Qxe4 {[%clk 0:00:42]} 20. Qxe4 {[%clk 0:00:22]}  Bxe4 {[%clk 0:00:43]} 21. Bxb6 {[%clk 0:00:22]}  Rb7 {[%clk 0:00:44]} 22. Bc5 {[%clk 0:00:21]}  Rd8 {[%clk 0:00:40]} 23. Bd6 {[%clk 0:00:20]}  Bd5 {[%clk 0:00:36]} 24. a3 {[%clk 0:00:19]}  f6 {[%clk 0:00:35]} 25. f4 {[%clk 0:00:18]}  fxe5 {[%clk 0:00:33]} 26. fxe5 {[%clk 0:00:19]}  Rf7 {[%clk 0:00:32]} 27. Rxf7 {[%clk 0:00:19]}  Kxf7 {[%clk 0:00:32]} 28. Rc7+ {[%clk 0:00:19]}  Kg6 {[%clk 0:00:32]} 29. Kf2 {[%clk 0:00:16]}  a5 {[%clk 0:00:29]} 30. g4 {[%clk 0:00:15]}  Rh8 {[%clk 0:00:24]} 31. Kg3 {[%clk 0:00:12]}  a4 {[%clk 0:00:23]} 32. h4 {[%clk 0:00:10]}  h5 {[%clk 0:00:23]} 33. gxh5+ {[%clk 0:00:11]}  Rxh5 {[%clk 0:00:21]} 34. Bf8 {[%clk 0:00:10]}  Rxe5 {[%clk 0:00:20]} 35. Rxg7+ {[%clk 0:00:10]}  Kf6 {[%clk 0:00:19]} 36. Rg4 {[%clk 0:00:07]}  Re3+ {[%clk 0:00:18]} 37. Kf2 {[%clk 0:00:04]}  Rf3+ {[%clk 0:00:18]} 38. Kg1 {[%clk 0:00:04]}  Rh3 {[%clk 0:00:18]} 39. Kf2 {[%clk 0:00:03]}  Kf5 {[%clk 0:00:19]} 40. Rg5+ {[%clk 0:00:03]}  Ke4 {[%clk 0:00:16]} 41. Rg4+ {[%clk 0:00:03]}  Kd3 {[%clk 0:00:16]} 42. Rg3+ {[%clk 0:00:03]}  Rxg3 {[%clk 0:00:15]} 43. Kxg3 {[%clk 0:00:04]}  e5 {[%clk 0:00:15]} 44. Bg7 {[%clk 0:00:04]}  e4 {[%clk 0:00:15]} 45. Kf2 {[%clk 0:00:05]}  e3+ {[%clk 0:00:15]} 46. Ke1 {[%clk 0:00:06]}  Bf3 {[%clk 0:00:14]} 47. Bc3 {[%clk 0:00:06]}  Bh5 {[%clk 0:00:14]} 48. Bb4 {[%clk 0:00:06]}  Kc2 {[%clk 0:00:14]} 49. Bc3 {[%clk 0:00:07]}  Kb3 {[%clk 0:00:14]} 50. Bd4 {[%clk 0:00:07]}  Kc4 {[%clk 0:00:14]} 51. Bxe3 {[%clk 0:00:07]}  Kd3 {[%clk 0:00:13]} 52. Bg5 {[%clk 0:00:07]}  Ke4 {[%clk 0:00:12]} 53. Bf6 {[%clk 0:00:08]}  Kf5 {[%clk 0:00:13]} 54. Bg5 {[%clk 0:00:09]}  Kg6 {[%clk 0:00:13]} 55. Kd2 {[%clk 0:00:10]}  Bf3 {[%clk 0:00:11]} 56. Kc3 {[%clk 0:00:11]}  Be2 {[%clk 0:00:12]} 57. Kb4 {[%clk 0:00:06]}  Bf1 {[%clk 0:00:12]} 58. Bc1 {[%clk 0:00:06]}  Be2 {[%clk 0:00:12]} 59. Bg5 {[%clk 0:00:05]}  Bf1 {[%clk 0:00:12]} 60. Kc3 {[%clk 0:00:06]}  Be2 {[%clk 0:00:12]} 61. Kd4 {[%clk 0:00:06]}  Bf1 {[%clk 0:00:12]} 62. Ke3 {[%clk 0:00:07]}  Kh5 {[%clk 0:00:12]} 63. Kf2 {[%clk 0:00:07]}  Bc4 {[%clk 0:00:11]} 64. Bd8 {[%clk 0:00:06]}  Kg6 {[%clk 0:00:11]} 65. Kg3 {[%clk 0:00:07]}  Kh5 {[%clk 0:00:11]} 66. Kf4 {[%clk 0:00:07]}  Kg6 {[%clk 0:00:12]} 67. Kg4 {[%clk 0:00:07]}  Be2+ {[%clk 0:00:11]} 68. Kf4 {[%clk 0:00:07]}  Bc4 {[%clk 0:00:12]} 69. Ke4 {[%clk 0:00:08]}  Kh5 {[%clk 0:00:12]} 70. Kd4 {[%clk 0:00:08]}  Kg6 {[%clk 0:00:12]} 71. Kc3 {[%clk 0:00:08]}  Kh5 {[%clk 0:00:11]} 72. Bf6 {[%clk 0:00:06]}  Kg6 {[%clk 0:00:11]} 73. Bd4 {[%clk 0:00:06]}  Kh5 {[%clk 0:00:12]} 74. Bf2 {[%clk 0:00:06]}  Kg6 {[%clk 0:00:12]} 75. Be1 {[%clk 0:00:07]}  Kh5 {[%clk 0:00:12]} 76. Kb4 {[%clk 0:00:07]}  Kg6 {[%clk 0:00:11]} 77. Bc3 {[%clk 0:00:07]}  Kh5 {[%clk 0:00:11]} 78. Bf6 {[%clk 0:00:07]}  Kg6 {[%clk 0:00:10]} 79. Bg5 {[%clk 0:00:07]}  Kh5 {[%clk 0:00:11]} 80. Kc3 {[%clk 0:00:08]}  Kg6 {[%clk 0:00:11]} 81. b4 {[%clk 0:00:07]}  axb3 {[%clk 0:00:05]} 82. Bc1 {[%clk 0:00:03]}  Kh5 {[%clk 0:00:03]} 83. Bg5 {[%clk 0:00:03]}  Kg4 {[%clk 0:00:03]} 84. Bf6 {[%clk 0:00:03]}  Kf5 {[%clk 0:00:03]} 85. Bg7 {[%clk 0:00:04]}  Kg6 {[%clk 0:00:03]} 86. Be5 {[%clk 0:00:04]}  Kh5 {[%clk 0:00:03]} 87. Bg3 {[%clk 0:00:05]}  b2 {[%clk 0:00:03]} 88. Be1 {[%clk 0:00:06]}  b1=Q {[%clk 0:00:03]} 89. Bd2 {[%clk 0:00:05]}  Qb3+ {[%clk 0:00:03]} 90. Kd4 {[%clk 0:00:05]}  Qd3+ {[%clk 0:00:04]} 91. Kc5 {[%clk 0:00:06]}  Qxd2 {[%clk 0:00:05]} 92. a4 {[%clk 0:00:06]}  Qb2 {[%clk 0:00:05]} 93. a5 {[%clk 0:00:06]}  Qa3+ {[%clk 0:00:05]} 94. Kb6 {[%clk 0:00:07]}  b4 {[%clk 0:00:06]} 95. a6 {[%clk 0:00:06]}  b3 {[%clk 0:00:06]} 96. a7 {[%clk 0:00:07]}  b2 {[%clk 0:00:07]} 97. Kb7 {[%clk 0:00:08]}  b1=Q+ {[%clk 0:00:07]} 98. Kc6 {[%clk 0:00:08]}  Qa6+ {[%clk 0:00:06]} 99. Kc5 {[%clk 0:00:08]}  Qbb5+ {[%clk 0:00:06]} 100. Kd4 {[%clk 0:00:09]}  Qxa7+ {[%clk 0:00:07]} 101. Kc3 {[%clk 0:00:09]}  Kxh4 {[%clk 0:00:07]} 102. Kc2 {[%clk 0:00:07]}  Qb3+ {[%clk 0:00:07]} 0-1


[Site "https://www.chess.com"]

[Event "Titled Tuesday Blitz August 22 Late 2023"]
[White "Pert, Richard G"]
[Black "Grossboss19"]
[WhiteFideId "404748"]
[WhiteElo "2685"]
[BlackElo "2534"]
[Result "1-0"]
[Round "5"]
[TimeControl "180+1"]
[Date "2023.08.22"]
[WhiteClock "0:01:03"]
[BlackClock "0:01:04"]
[Board "66"]

1. d4 {[%clk 0:03:00]}  Nf6 {[%clk 0:03:00]} 2. Bg5 {[%clk 0:02:59]}  e6 {[%clk 0:03:01]} 3. e4 {[%clk 0:02:59]}  Be7 {[%clk 0:03:01]} 4. e5 {[%clk 0:02:59]}  Nd5 {[%clk 0:03:01]} 5. Bxe7 {[%clk 0:02:59]}  Nxe7 {[%clk 0:03:01]} 6. Qg4 {[%clk 0:02:57]}  O-O {[%clk 0:02:46]} 7. Nf3 {[%clk 0:02:56]}  d6 {[%clk 0:02:45]} 8. Bd3 {[%clk 0:02:56]}  Nbc6 {[%clk 0:02:42]} 9. Bxh7+ {[%clk 0:02:49]}  Kh8 {[%clk 0:02:26]} 10. Qh5 {[%clk 0:02:37]}  Ng8 {[%clk 0:01:37]} 11. Bxg8+ {[%clk 0:02:22]}  Kxg8 {[%clk 0:01:38]} 12. Ng5 {[%clk 0:02:22]}  Qxg5 {[%clk 0:01:34]} 13. Qxg5 {[%clk 0:02:20]}  Nxd4 {[%clk 0:01:35]} 14. Na3 {[%clk 0:02:14]}  dxe5 {[%clk 0:01:27]} 15. Qxe5 {[%clk 0:02:10]}  Nc6 {[%clk 0:01:26]} 16. Qxc7 {[%clk 0:02:08]}  e5 {[%clk 0:01:26]} 17. O-O-O {[%clk 0:02:04]}  Be6 {[%clk 0:01:20]} 18. Qxb7 {[%clk 0:01:57]}  Rfc8 {[%clk 0:01:17]} 19. Rd6 {[%clk 0:01:42]}  Rab8 {[%clk 0:01:11]} 20. Qxc6 {[%clk 0:01:39]}  Rxc6 {[%clk 0:01:11]} 21. Rxc6 {[%clk 0:01:40]}  Bd5 {[%clk 0:01:10]} 22. Rc7 {[%clk 0:01:35]}  Bxg2 {[%clk 0:01:09]} 23. Rg1 {[%clk 0:01:33]}  Bf3 {[%clk 0:01:09]} 24. Nc4 {[%clk 0:01:27]}  e4 {[%clk 0:01:09]} 25. Nd2 {[%clk 0:01:26]}  Bh5 {[%clk 0:01:10]} 26. Nxe4 {[%clk 0:01:23]}  Kf8 {[%clk 0:01:10]} 27. Rxa7 {[%clk 0:01:20]}  Rb4 {[%clk 0:01:10]} 28. Re1 {[%clk 0:01:14]}  Rd4 {[%clk 0:01:09]} 29. c3 {[%clk 0:01:13]}  Rd5 {[%clk 0:01:07]} 30. b4 {[%clk 0:01:11]}  Bg6 {[%clk 0:01:04]} 31. f3 {[%clk 0:01:03]} 1-0


[Site "https://www.chess.com"]

[Event "Titled Tuesday Blitz August 22 Late 2023"]
[White "Olsen, Filip Boe"]
[Black "Grinev, Valeriy"]
[WhiteFideId "1440640"]
[BlackFideId "14117517"]
[WhiteElo "2683"]
[BlackElo "2513"]
[Result "1-0"]
[Round "5"]
[TimeControl "180+1"]
[Date "2023.08.22"]
[WhiteClock "0:00:07"]
[BlackClock "0:00:31"]
[Board "67"]

1. c4 {[%clk 0:02:49]}  c5 {[%clk 0:03:00]} 2. Nc3 {[%clk 0:02:46]}  Nc6 {[%clk 0:03:00]} 3. Nf3 {[%clk 0:02:46]}  e6 {[%clk 0:03:00]} 4. e3 {[%clk 0:02:46]}  Nf6 {[%clk 0:02:55]} 5. d4 {[%clk 0:02:46]}  cxd4 {[%clk 0:02:55]} 6. exd4 {[%clk 0:02:46]}  d5 {[%clk 0:02:56]} 7. c5 {[%clk 0:02:41]}  Be7 {[%clk 0:02:51]} 8. Bb5 {[%clk 0:02:41]}  O-O {[%clk 0:02:52]} 9. O-O {[%clk 0:02:41]}  a6 {[%clk 0:02:52]} 10. Bxc6 {[%clk 0:02:41]}  bxc6 {[%clk 0:02:52]} 11. Bf4 {[%clk 0:02:38]}  a5 {[%clk 0:02:52]} 12. Re1 {[%clk 0:02:31]}  Ba6 {[%clk 0:02:52]} 13. h3 {[%clk 0:02:31]}  h6 {[%clk 0:02:45]} 14. b3 {[%clk 0:02:23]}  Nd7 {[%clk 0:02:21]} 15. Ne5 {[%clk 0:02:01]}  Nxe5 {[%clk 0:02:21]} 16. Bxe5 {[%clk 0:02:02]}  Bf6 {[%clk 0:02:21]} 17. Bd6 {[%clk 0:02:00]}  Re8 {[%clk 0:02:20]} 18. Qd2 {[%clk 0:01:59]}  Qc8 {[%clk 0:02:14]} 19. f4 {[%clk 0:01:57]}  Qb7 {[%clk 0:02:14]} 20. Re3 {[%clk 0:01:51]}  Rad8 {[%clk 0:02:12]} 21. Be5 {[%clk 0:01:50]}  Bxe5 {[%clk 0:02:10]} 22. fxe5 {[%clk 0:01:51]}  Qb4 {[%clk 0:02:06]} 23. Rg3 {[%clk 0:01:46]}  Kh8 {[%clk 0:02:06]} 24. Rd1 {[%clk 0:01:35]}  Rg8 {[%clk 0:02:03]} 25. Kh2 {[%clk 0:01:09]}  Rdf8 {[%clk 0:02:03]} 26. Qe3 {[%clk 0:01:09]}  f6 {[%clk 0:02:02]} 27. Rg6 {[%clk 0:01:03]}  Kh7 {[%clk 0:01:50]} 28. Rg3 {[%clk 0:00:55]}  f5 {[%clk 0:01:48]} 29. Ne2 {[%clk 0:00:45]}  Bxe2 {[%clk 0:01:44]} 30. Qxe2 {[%clk 0:00:46]}  g5 {[%clk 0:01:41]} 31. Qb2 {[%clk 0:00:32]}  a4 {[%clk 0:01:37]} 32. a3 {[%clk 0:00:32]}  Qa5 {[%clk 0:01:35]} 33. b4 {[%clk 0:00:32]}  Qb5 {[%clk 0:01:35]} 34. Qd2 {[%clk 0:00:30]}  Rg7 {[%clk 0:01:27]} 35. Qd3 {[%clk 0:00:29]}  Qxd3 {[%clk 0:01:26]} 36. Rgxd3 {[%clk 0:00:29]}  f4 {[%clk 0:01:25]} 37. Rb1 {[%clk 0:00:19]}  Rb7 {[%clk 0:01:24]} 38. Kg1 {[%clk 0:00:19]}  Kg6 {[%clk 0:01:23]} 39. Kf2 {[%clk 0:00:19]}  Kf5 {[%clk 0:01:24]} 40. Kf3 {[%clk 0:00:19]}  h5 {[%clk 0:01:24]} 41. Rd2 {[%clk 0:00:18]}  g4+ {[%clk 0:01:23]} 42. hxg4+ {[%clk 0:00:19]}  hxg4+ {[%clk 0:01:24]} 43. Kf2 {[%clk 0:00:19]}  Rh8 {[%clk 0:01:23]} 44. Rc2 {[%clk 0:00:20]}  Ke4 {[%clk 0:01:21]} 45. Rd2 {[%clk 0:00:14]}  f3 {[%clk 0:01:14]} 46. Re1+ {[%clk 0:00:13]}  Kf4 {[%clk 0:01:14]} 47. g3+ {[%clk 0:00:10]}  Kf5 {[%clk 0:01:13]} 48. Ke3 {[%clk 0:00:11]}  Rh3 {[%clk 0:01:11]} 49. Rg1 {[%clk 0:00:11]}  Rbh7 {[%clk 0:01:09]} 50. Rc2 {[%clk 0:00:11]}  Rh1 {[%clk 0:01:05]} 51. Rxh1 {[%clk 0:00:11]}  Rxh1 {[%clk 0:01:05]} 52. b5 {[%clk 0:00:12]}  cxb5 {[%clk 0:01:04]} 53. c6 {[%clk 0:00:12]}  Rh8 {[%clk 0:01:00]} 54. c7 {[%clk 0:00:12]}  Rc8 {[%clk 0:01:01]} 55. Rc5 {[%clk 0:00:12]}  b4 {[%clk 0:00:58]} 56. axb4 {[%clk 0:00:11]}  a3 {[%clk 0:00:59]} 57. Rc2 {[%clk 0:00:11]}  a2 {[%clk 0:00:57]} 58. Rxa2 {[%clk 0:00:11]}  Rxc7 {[%clk 0:00:58]} 59. Ra3 {[%clk 0:00:11]}  Rc2 {[%clk 0:00:54]} 60. Rb3 {[%clk 0:00:09]}  Re2+ {[%clk 0:00:52]} 61. Kd3 {[%clk 0:00:09]}  Rg2 {[%clk 0:00:53]} 62. b5 {[%clk 0:00:09]}  Rxg3 {[%clk 0:00:53]} 63. Rb1 {[%clk 0:00:07]}  f2+ {[%clk 0:00:50]} 64. Ke2 {[%clk 0:00:07]}  Rf3 {[%clk 0:00:50]} 65. b6 {[%clk 0:00:07]}  Kf4 {[%clk 0:00:37]} 66. b7 {[%clk 0:00:07]}  g3 {[%clk 0:00:38]} 67. b8=Q {[%clk 0:00:07]}  Re3+ {[%clk 0:00:33]} 68. Kd2 {[%clk 0:00:07]}  g2 {[%clk 0:00:30]} 69. Qf8+ {[%clk 0:00:07]}  Kg3 {[%clk 0:00:30]} 70. Qg7+ {[%clk 0:00:05]}  Kf3 {[%clk 0:00:31]} 71. Qf6+ {[%clk 0:00:04]}  Ke4 {[%clk 0:00:30]} 72. Qxf2 {[%clk 0:00:05]}  Rd3+ {[%clk 0:00:29]} 73. Ke2 {[%clk 0:00:05]}  Rxd4 {[%clk 0:00:29]} 74. Qxg2+ {[%clk 0:00:06]}  Kxe5 {[%clk 0:00:30]} 75. Qg3+ {[%clk 0:00:06]}  Kf5 {[%clk 0:00:29]} 76. Rf1+ {[%clk 0:00:06]}  Rf4 {[%clk 0:00:30]} 77. Qxf4+ {[%clk 0:00:06]}  Kg6 {[%clk 0:00:30]} 78. Rg1+ {[%clk 0:00:07]}  Kh5 {[%clk 0:00:31]} 79. Qh2# {[%clk 0:00:07]} 1-0


[Site "https://www.chess.com"]

[Event "Titled Tuesday Blitz August 22 Late 2023"]
[White "Turayev, Shahruh"]
[Black "Glavina, Pablo"]
[WhiteFideId "14003856"]
[BlackFideId "100234"]
[WhiteElo "2632"]
[BlackElo "2523"]
[Result "0-1"]
[Round "5"]
[TimeControl "180+1"]
[Date "2023.08.22"]
[WhiteClock "0:00:07"]
[BlackClock "0:00:03"]
[Board "70"]

1. e4 {[%clk 0:03:00]}  c6 {[%clk 0:02:59]} 2. Nc3 {[%clk 0:03:00]}  d5 {[%clk 0:03:00]} 3. exd5 {[%clk 0:03:01]}  cxd5 {[%clk 0:03:00]} 4. d4 {[%clk 0:03:02]}  Nc6 {[%clk 0:03:00]} 5. Bf4 {[%clk 0:03:03]}  a6 {[%clk 0:02:57]} 6. Nf3 {[%clk 0:03:02]}  Bg4 {[%clk 0:02:56]} 7. Be2 {[%clk 0:03:01]}  Bxf3 {[%clk 0:02:56]} 8. Bxf3 {[%clk 0:03:01]}  e6 {[%clk 0:02:56]} 9. O-O {[%clk 0:03:01]}  Bd6 {[%clk 0:02:53]} 10. Ne2 {[%clk 0:03:01]}  Bxf4 {[%clk 0:02:52]} 11. Nxf4 {[%clk 0:03:02]}  Qf6 {[%clk 0:02:43]} 12. Nh5 {[%clk 0:02:49]}  Qxd4 {[%clk 0:02:40]} 13. Qe2 {[%clk 0:02:10]}  g6 {[%clk 0:02:34]} 14. Ng3 {[%clk 0:01:56]}  Nge7 {[%clk 0:02:33]} 15. Rad1 {[%clk 0:01:55]}  Qe5 {[%clk 0:02:33]} 16. Qd2 {[%clk 0:01:53]}  O-O {[%clk 0:02:32]} 17. c3 {[%clk 0:01:54]}  Nf5 {[%clk 0:02:28]} 18. Rfe1 {[%clk 0:01:49]}  Qf6 {[%clk 0:02:28]} 19. Qf4 {[%clk 0:01:43]}  Kg7 {[%clk 0:02:22]} 20. Qc7 {[%clk 0:01:35]}  Nxg3 {[%clk 0:02:16]} 21. hxg3 {[%clk 0:01:36]}  Rab8 {[%clk 0:02:08]} 22. Qb6 {[%clk 0:01:18]}  Ne5 {[%clk 0:02:02]} 23. Re3 {[%clk 0:01:18]}  Nc4 {[%clk 0:02:01]} 24. Qa7 {[%clk 0:01:13]}  Ra8 {[%clk 0:01:37]} 25. Qxb7 {[%clk 0:01:12]}  Nxe3 {[%clk 0:01:37]} 26. fxe3 {[%clk 0:01:12]}  Rab8 {[%clk 0:01:38]} 27. Qxa6 {[%clk 0:01:05]}  Rxb2 {[%clk 0:01:37]} 28. a4 {[%clk 0:01:01]}  Qxc3 {[%clk 0:01:36]} 29. e4 {[%clk 0:00:58]}  dxe4 {[%clk 0:01:34]} 30. Bxe4 {[%clk 0:00:59]}  Qe3+ {[%clk 0:01:33]} 31. Kh2 {[%clk 0:00:53]}  Qxe4 {[%clk 0:01:31]} 32. Qf1 {[%clk 0:00:52]}  Rc8 {[%clk 0:01:16]} 33. Rd7 {[%clk 0:00:51]}  Rf8 {[%clk 0:01:08]} 34. a5 {[%clk 0:00:45]}  Ra2 {[%clk 0:01:03]} 35. a6 {[%clk 0:00:41]}  Qc6 {[%clk 0:01:00]} 36. Ra7 {[%clk 0:00:29]}  Qb6 {[%clk 0:00:58]} 37. Rd7 {[%clk 0:00:21]}  Qxa6 {[%clk 0:00:54]} 38. Qf3 {[%clk 0:00:19]}  Qe2 {[%clk 0:00:49]} 39. Qb7 {[%clk 0:00:15]}  h5 {[%clk 0:00:44]} 40. Re7 {[%clk 0:00:12]}  Qe5 {[%clk 0:00:36]} 41. Qb4 {[%clk 0:00:06]}  Qd5 {[%clk 0:00:24]} 42. Qc3+ {[%clk 0:00:03]}  Kg8 {[%clk 0:00:24]} 43. Kh3 {[%clk 0:00:02]}  Qxg2+ {[%clk 0:00:21]} 44. Kh4 {[%clk 0:00:03]}  Qe4+ {[%clk 0:00:17]} 45. Kg5 {[%clk 0:00:03]}  Ra4 {[%clk 0:00:03]} 46. Kh6 {[%clk 0:00:03]}  Qd4 {[%clk 0:00:04]} 47. Qf3 {[%clk 0:00:03]}  Qg7+ {[%clk 0:00:04]} 48. Kg5 {[%clk 0:00:03]}  Rg4+ {[%clk 0:00:03]} 49. Qxg4 {[%clk 0:00:03]}  Qe5+ {[%clk 0:00:02]} 50. Kh4 {[%clk 0:00:02]}  hxg4 {[%clk 0:00:02]} 51. Kxg4 {[%clk 0:00:02]}  Qf5+ {[%clk 0:00:01]} 52. Kh4 {[%clk 0:00:03]}  Qf6+ {[%clk 0:00:02]} 53. Kg4 {[%clk 0:00:03]}  Qxe7 {[%clk 0:00:03]} 54. Kf3 {[%clk 0:00:03]}  Qb4 {[%clk 0:00:03]} 55. g4 {[%clk 0:00:04]}  Kg7 {[%clk 0:00:03]} 56. Kg3 {[%clk 0:00:05]}  Ra8 {[%clk 0:00:04]} 57. Kh4 {[%clk 0:00:06]}  Ra5 {[%clk 0:00:03]} 58. Kh3 {[%clk 0:00:06]}  Rg5 {[%clk 0:00:03]} 59. Kh4 {[%clk 0:00:07]}  Qxg4# {[%clk 0:00:03]} 0-1


[Site "https://www.chess.com"]

[Event "Titled Tuesday Blitz August 22 Late 2023"]
[White "Shohat, Yotam"]
[Black "Thomforde-Toates, Noah"]
[WhiteFideId "2813955"]
[BlackFideId "30951992"]
[WhiteElo "2442"]
[BlackElo "2625"]
[Result "1-0"]
[Round "5"]
[TimeControl "180+1"]
[Date "2023.08.22"]
[WhiteClock "0:00:09"]
[BlackClock "0:00:14"]
[Board "71"]

1. e4 {[%clk 0:03:00]}  c5 {[%clk 0:02:57]} 2. Nf3 {[%clk 0:03:01]}  g6 {[%clk 0:02:56]} 3. d4 {[%clk 0:03:01]}  cxd4 {[%clk 0:02:57]} 4. Qxd4 {[%clk 0:03:01]}  Nf6 {[%clk 0:02:57]} 5. e5 {[%clk 0:03:02]}  Nc6 {[%clk 0:02:57]} 6. Qa4 {[%clk 0:03:03]}  Nd5 {[%clk 0:02:58]} 7. Qb3 {[%clk 0:03:03]}  Nb6 {[%clk 0:02:52]} 8. a4 {[%clk 0:03:03]}  d6 {[%clk 0:02:43]} 9. a5 {[%clk 0:03:01]}  Nd7 {[%clk 0:02:43]} 10. exd6 {[%clk 0:02:51]}  exd6 {[%clk 0:02:36]} 11. Bc4 {[%clk 0:02:51]}  Nde5 {[%clk 0:02:35]} 12. Nxe5 {[%clk 0:02:50]}  Nxe5 {[%clk 0:02:34]} 13. Bd5 {[%clk 0:02:50]}  Qc7 {[%clk 0:02:19]} 14. O-O {[%clk 0:02:46]}  Bg7 {[%clk 0:02:16]} 15. f4 {[%clk 0:02:42]}  Ng4 {[%clk 0:02:12]} 16. Re1+ {[%clk 0:02:41]}  Kf8 {[%clk 0:02:09]} 17. h3 {[%clk 0:01:49]}  Qc5+ {[%clk 0:01:33]} 18. Kh1 {[%clk 0:01:48]}  h5 {[%clk 0:01:30]} 19. Bxf7 {[%clk 0:01:35]}  Nf2+ {[%clk 0:00:37]} 20. Kh2 {[%clk 0:01:33]}  Ng4+ {[%clk 0:00:37]} 21. hxg4 {[%clk 0:01:32]}  hxg4+ {[%clk 0:00:38]} 22. Kg3 {[%clk 0:01:32]}  Bd7 {[%clk 0:00:33]} 23. Bxg6 {[%clk 0:01:27]}  d5 {[%clk 0:00:22]} 24. Qa3 {[%clk 0:01:26]}  Qxa3+ {[%clk 0:00:21]} 25. Rxa3 {[%clk 0:01:26]}  Bf6 {[%clk 0:00:21]} 26. Kf2 {[%clk 0:01:23]}  g3+ {[%clk 0:00:17]} 27. Kf3 {[%clk 0:01:17]}  Kg7 {[%clk 0:00:16]} 28. f5 {[%clk 0:01:14]}  Bc6 {[%clk 0:00:15]} 29. Ke2 {[%clk 0:00:46]}  Rh2 {[%clk 0:00:13]} 30. Bf4 {[%clk 0:00:42]}  Rxg2+ {[%clk 0:00:13]} 31. Kd1 {[%clk 0:00:42]}  Bh4 {[%clk 0:00:09]} 32. Nd2 {[%clk 0:00:41]}  d4 {[%clk 0:00:08]} 33. Be5+ {[%clk 0:00:40]}  Kh6 {[%clk 0:00:08]} 34. Bxd4 {[%clk 0:00:40]}  Rd8 {[%clk 0:00:08]} 35. Rd3 {[%clk 0:00:37]}  Rd5 {[%clk 0:00:04]} 36. b4 {[%clk 0:00:24]}  Rh2 {[%clk 0:00:02]} 37. c4 {[%clk 0:00:21]}  g2 {[%clk 0:00:02]} 38. cxd5 {[%clk 0:00:19]}  Ba4+ {[%clk 0:00:02]} 39. Kc1 {[%clk 0:00:17]}  Bxe1 {[%clk 0:00:02]} 40. Nf3 {[%clk 0:00:17]}  Rh1 {[%clk 0:00:03]} 41. Nxe1 {[%clk 0:00:13]}  Rxe1+ {[%clk 0:00:03]} 42. Kd2 {[%clk 0:00:14]}  g1=Q {[%clk 0:00:04]} 43. Bxg1 {[%clk 0:00:13]}  Rxg1 {[%clk 0:00:05]} 44. d6 {[%clk 0:00:14]}  Rd1+ {[%clk 0:00:05]} 45. Ke3 {[%clk 0:00:13]}  Rxd3+ {[%clk 0:00:06]} 46. Kxd3 {[%clk 0:00:14]}  Kg7 {[%clk 0:00:07]} 47. Kd4 {[%clk 0:00:14]}  Kf6 {[%clk 0:00:08]} 48. Kc5 {[%clk 0:00:14]}  Ke5 {[%clk 0:00:06]} 49. Bh5 {[%clk 0:00:13]}  Kf6 {[%clk 0:00:06]} 50. Bf3 {[%clk 0:00:12]}  Kxf5 {[%clk 0:00:06]} 51. Bxb7 {[%clk 0:00:12]}  Ke6 {[%clk 0:00:06]} 52. Bc6 {[%clk 0:00:12]}  Bd1 {[%clk 0:00:07]} 53. b5 {[%clk 0:00:09]}  Be2 {[%clk 0:00:07]} 54. b6 {[%clk 0:00:09]}  axb6+ {[%clk 0:00:08]} 55. axb6 {[%clk 0:00:09]}  Ba6 {[%clk 0:00:07]} 56. b7 {[%clk 0:00:09]}  Bxb7 {[%clk 0:00:07]} 57. Bxb7 {[%clk 0:00:10]}  Kd7 {[%clk 0:00:08]} 58. Bd5 {[%clk 0:00:11]}  Kd8 {[%clk 0:00:08]} 59. Kc6 {[%clk 0:00:11]}  Kc8 {[%clk 0:00:09]} 60. d7+ {[%clk 0:00:11]}  Kd8 {[%clk 0:00:10]} 61. Bc4 {[%clk 0:00:11]}  Ke7 {[%clk 0:00:10]} 62. Kc7 {[%clk 0:00:12]}  Kf6 {[%clk 0:00:11]} 63. d8=Q+ {[%clk 0:00:11]}  Ke5 {[%clk 0:00:11]} 64. Qd5+ {[%clk 0:00:11]}  Kf4 {[%clk 0:00:11]} 65. Qe6 {[%clk 0:00:12]}  Kf3 {[%clk 0:00:11]} 66. Kd6 {[%clk 0:00:11]}  Kf2 {[%clk 0:00:12]} 67. Kd5 {[%clk 0:00:12]}  Kf3 {[%clk 0:00:13]} 68. Kd4 {[%clk 0:00:12]}  Kf2 {[%clk 0:00:14]} 69. Qe3+ {[%clk 0:00:12]}  Kg2 {[%clk 0:00:14]} 70. Qf4 {[%clk 0:00:12]}  Kg1 {[%clk 0:00:14]} 71. Ke3 {[%clk 0:00:10]}  Kg2 {[%clk 0:00:14]} 72. Qf2+ {[%clk 0:00:10]}  Kh1 {[%clk 0:00:14]} 73. Bd5# {[%clk 0:00:09]} 1-0


[Site "https://www.chess.com"]